fUST/lending_fUST_20250613
["ID","MTS","AMOUNT","RATE_DAILY","PERIOD"]
[365600652,1749799846477,-151.0,0.000225,7]
[365600654,1749799846486,-151.0,0.000225,7]
[365600656,1749799846496,-151.0,0.00022501,7]
[365600658,1749799846505,-151.0,0.00022501,7]
[365600660,1749799846515,-151.0,0.00022501,7]
[365600662,1749799846524,-151.0,0.00022501,7]
[365600664,1749799846533,-500.0,0.00022505,2]
[365600666,1749799846543,-545.23648232,0.00022514,2]
[365600668,1749799846552,-2000.0,0.00022516,2]
[365600670,1749799846562,-214.768915,0.00022539,7]
[365600672,1749799846571,-214.768915,0.00022539,7]
[365600674,1749799846580,-500.0,0.00022539,2]
[365600675,1749799846590,-1340.757889,0.0002254,3]
[365600676,1749799846600,-72583.30815187,0.0002254,2]
[365600677,1749799846610,-2947.09752673,0.00022555,7]
[365600678,1749799846620,-500.0,0.00022622,2]
[365600679,1749799846630,-229.0,0.00022633,2]
[365600680,1749799846641,-420.0,0.00022678,2]
[365600681,1749799846651,-300.0,0.00022678,2]
[365600683,1749799846660,-420.0,0.00022678,2]
[365600685,1749799846670,-1083.4932144,0.00022681,2]
[365600687,1749799846679,-1000.0,0.00022681,2]
[365600689,1749799846689,-1000.0,0.00022681,2]
[365600691,1749799846699,-546.17308086,0.00022681,2]
[365600693,1749799846708,-420.0,0.00022691,2]
[365600695,1749799846718,-151.0,0.00022693,7]
[365600697,1749799846727,-2947.09752673,0.00022693,7]
[365600699,1749799846737,-5345.26,0.00022717,2]
[365600701,1749799846746,-151.0,0.00022734,7]
[365600703,1749799846756,-151.0,0.00022734,7]
[365600705,1749799846766,-151.0,0.00022734,7]
[365600707,1749799846775,-153.476377,0.00022734,7]
[365600709,1749799846785,-151.0,0.00022734,7]
[365600711,1749799846794,-153.476377,0.00022734,7]
[365600713,1749799846804,-151.0,0.00022734,7]
[365600715,1749799846814,-151.0,0.00022735,7]
[365600717,1749799846823,-151.0,0.00022735,7]
[365600720,1749799846833,-602.544467,0.00022735,7]
[365600722,1749799846844,-602.544467,0.00022735,7]
[365600724,1749799846854,-732.5,0.00022739,2]
[365600725,1749799846864,-1173.81,0.00022739,4]
[365600728,1749799846874,-571.07,0.00022739,4]
[365600729,1749799846883,-460.0,0.00022739,4]
[365600732,1749799846895,-393.25116521,0.00022739,4]
[365600734,1749799846905,-613.79,0.00022739,4]
[365600735,1749799846915,-460.0,0.00022739,4]
[365600737,1749799846925,-1089.66,0.00022739,4]
[365600739,1749799846935,-674.41,0.00022739,4]
[365600741,1749799846944,-460.0,0.00022739,4]
[365600743,1749799846953,-460.0,0.00022739,4]
[365600745,1749799846963,-460.0,0.00022739,4]
[365600747,1749799846972,-480.27,0.00022739,4]
[365600749,1749799846982,-1146.46,0.00022739,4]
[365600751,1749799847003,-460.0,0.00022739,4]
[365600753,1749799847023,-460.0,0.00022739,4]
[365600755,1749799847032,-460.0,0.00022739,4]
[365600757,1749799847043,-460.0,0.00022739,4]
[365600759,1749799847052,-684.08,0.00022739,4]
[365600761,1749799847062,-620.25,0.00022739,4]
[365600763,1749799847072,-460.0,0.00022739,4]
[365600765,1749799847082,-1198.41,0.00022739,4]
[365600768,1749799847091,-460.0,0.00022739,4]
[365600769,1749799847100,-783.838145,0.00022766,2]
[365600771,1749799847110,-215.0738,0.0002277,2]
[365600773,1749799847119,-700.0,0.00022785,2]
[365600775,1749799847128,-151.0,0.00022785,7]
[365600777,1749799847139,-1680.0,0.00022785,2]
[365600779,1749799847149,-175.021273,0.00022812,7]
[365600781,1749799847159,-175.021273,0.00022812,7]
[365600783,1749799847168,-800.0,0.00022813,2]
[365600786,1749799847177,-201.092802,0.00022831,7]
[365600788,1749799847187,-165.25114,0.00022831,7]
[365600790,1749799847197,-201.092802,0.00022831,7]
[365600792,1749799847206,-194.941344,0.00022831,7]
[365600794,1749799847216,-194.941336,0.00022831,7]
[365600796,1749799847226,-2947.09752673,0.00022831,8]
[365600798,1749799847235,-151.0,0.0002287,7]
[365600800,1749799847244,-168.0,0.00022882,2]
[365600802,1749799847253,-542.870431,0.00022883,7]
[365600804,1749799847262,-542.870426,0.00022883,7]
[365600806,1749799847271,-151.0,0.00022889,7]
[365600808,1749799847281,-151.0,0.00022889,7]
[365600810,1749799847290,-800.0,0.00022889,2]
[365600812,1749799847300,-2000.0,0.000229,2]
[365600814,1749799847310,-151.0,0.000229,10]
[365600816,1749799847319,-2497.937806,0.000229,2]
[365600818,1749799847330,-2497.937806,0.000229,2]
[365600820,1749799847339,-151.0,0.000229,7]
[365600822,1749799847349,-1000.0,0.00022908,2]
[365600824,1749799847358,-1000.0,0.00022919,2]
[365600826,1749799847368,-982.82529033,0.00022919,2]
[365600828,1749799847377,-806.78523624,0.00022922,2]
[365600830,1749799847390,-2816.68661021,0.00022939,2]
[365600832,1749799847400,-151.0,0.00022939,7]
[365600834,1749799847410,-1763.300814,0.00022939,7]
[365600836,1749799847420,-1763.300814,0.00022939,7]
[365600838,1749799847430,-214.768915,0.00022939,7]
[365600840,1749799847440,-214.768915,0.00022939,7]
[365600842,1749799847450,-160.0,0.00022961,3]
[365600844,1749799847459,-1000.0,0.00022963,2]
[365600846,1749799847471,-1000.0,0.00022964,2]
[365600848,1749799847481,-1000.0,0.00022964,2]
[365600850,1749799847491,-2947.09752673,0.00022969,8]
[365600852,1749799847500,-1005.63578775,0.00022971,2]
[365600854,1749799847510,-1200.0,0.00022971,2]
[365600856,1749799847520,-1000.0,0.00022971,2]
[365600858,1749799847529,-1000.0,0.00022971,2]
[365600860,1749799847538,-1000.0,0.00022971,2]
[365600862,1749799847548,-1000.0,0.00022971,2]
[365600864,1749799847557,-1000.0,0.00022971,2]
[365600866,1749799847567,-1064.02587587,0.00022971,2]
[365600868,1749799847576,-1000.0,0.00022971,2]
[365600870,1749799847587,-1087.50809946,0.00022971,2]
[365600872,1749799847596,-1000.0,0.00022971,2]
[365600874,1749799847606,-1000.0,0.00022971,2]
[365600876,1749799847615,-1000.0,0.00022971,2]
[365600878,1749799847624,-1000.0,0.00022971,2]
[365600880,1749799847634,-160.0,0.00022988,2]
[365600882,1749799847647,-229.78555783,0.00022989,2]
[365600884,1749799847657,-151.0,0.00022999,7]
[365600886,1749799847667,-151.0,0.00022999,7]
[365600888,1749799847676,-230007.94157181,0.00023,3]
[365600890,1749799847686,-500.0,0.00023,3]
[365600892,1749799847696,-500.0,0.00023,3]
[365600895,1749799847706,-500.0,0.00023,3]
[365600896,1749799847716,-500.0,0.00023,3]
[365600898,1749799847725,-500.0,0.00023,3]
[365600900,1749799847735,-500.0,0.00023,3]
[365600902,1749799847745,-1000.0,0.00023,23]
[365600905,1749799847754,-160.0,0.00023,3]
[365600907,1749799847766,-160.0,0.00023,3]
[365600908,1749799847776,-160.0,0.00023,3]
[365600910,1749799847785,-835.28007164,0.00023,3]
[365600913,1749799847795,-835.28007164,0.00023,3]
[365600915,1749799847804,-187.606472,0.00023,2]
[365600917,1749799847814,-373900.2303462,0.00023,3]
[365600931,1749799848603,-445.5102625,0.00020855,2]
[365600933,1749799848616,-357.47741938,0.00020855,2]
[365600935,1749799848626,-802.98768188,0.00020855,2]
[365600937,1749799848635,-802.98768188,0.00020855,2]
[365600939,1749799848648,-560.01408959,0.00020855,2]
[365601017,1749799944880,170.0,0.00016438,3]
[365601019,1749800049041,289.198841,0.00013699,2]
[365601021,1749800056261,-239.0,0.00020187,2]
[365601023,1749800141068,5000.0,0.0002,2]
[365601024,1749800148207,309.48875194,0.00019807,2]
[365601025,1749800148235,10153.76866667,0.00019807,2]
[365601026,1749800148265,10153.76866667,0.00019807,2]
[365601027,1749800148293,4282.97391472,0.00019807,2]
[365601029,1749800227130,4395.02637311,0.00024953,60]
[365601030,1749800261233,208.0,0.00019726,3]
[365601031,1749800291031,2000.0,0.0002,2]
[365601034,1749800494440,2548.87787132,0.00024948,120]
[365601036,1749800545493,296.526504,0.00019665,2]
[365601038,1749800577867,170.0,0.00016438,3]
[365601039,1749800628704,666.0,0.000197,2]
[365601042,1749800719214,1260.0,0.00024948,60]
[365601509,1749800895443,185.0,0.00016438,3]
[365601510,1749800942586,-50.198841,0.00020187,2]
[365601511,1749800942609,-145.65498559,0.00020274,2]
[365601536,1749800980427,600.0,0.00019497,2]
[365601539,1749800993557,182.863048,0.00019819,2]
[365601570,1749801032257,-20.34501441,0.00020274,2]
[365601571,1749801032267,-986.16484472,0.00020588,2]
[365601572,1749801032336,-376.004271,0.00020588,2]
[365601573,1749801032348,-462.99088428,0.00020588,2]
[365601574,1749801032357,-600.0,0.00020593,2]
[365601575,1749801032367,-179.06781545,0.00020748,2]
[365601576,1749801032376,-300.0,0.00020835,2]
[365601577,1749801032386,-300.0,0.00020835,2]
[365601578,1749801032395,-300.0,0.00020835,2]
[365601579,1749801032406,-1200.0,0.00020835,2]
[365601580,1749801032416,-4713.94,0.00020836,10]
[365601581,1749801032425,-2320.76059255,0.00020836,10]
[365601582,1749801032436,-1607.51940745,0.00020836,10]
[365601583,1749801032446,-315.3059208,0.00020836,10]
[365601584,1749801032456,-300.0,0.00020837,2]
[365601585,1749801032465,-1080.70592649,0.00020839,2]
[365601586,1749801032476,-1834.69088576,0.00020839,2]
[365601587,1749801032488,-37119.67884424,0.00020839,2]
[365601588,1749801032498,-518.52,0.00020839,2]
[365601589,1749801032508,-178.90431822,0.00020839,2]
[365601590,1749801032518,-219.35649394,0.00020846,2]
[365601591,1749801032527,-185.43047667,0.00020846,2]
[365601592,1749801032537,-217.48898323,0.00020846,2]
[365601593,1749801032547,-500.0,0.00020846,2]
[365601594,1749801032556,-444.44792709,0.00020846,2]
[365601595,1749801032566,-500.0,0.00020846,2]
[365601596,1749801032576,-500.0,0.00020846,2]
[365601597,1749801032585,-500.0,0.00020846,2]
[365601599,1749801032595,-835.27863293,0.00020846,2]
[365601602,1749801032605,-535.87282639,0.00020846,2]
[365601603,1749801032615,-500.0,0.00020846,2]
[365601606,1749801032624,-186.36916042,0.00020846,2]
[365601607,1749801032634,-500.0,0.00020846,2]
[365601609,1749801032643,-500.0,0.00020846,2]
[365601611,1749801032653,-500.0,0.00020846,2]
[365601613,1749801032662,-500.0,0.00020846,2]
[365601615,1749801032672,-500.0,0.00020846,2]
[365601618,1749801032682,-500.0,0.00020846,2]
[365601620,1749801032691,-835.27863293,0.00020846,2]
[365601621,1749801032700,-500.0,0.00020846,2]
[365601623,1749801032710,-500.0,0.00020846,2]
[365601625,1749801032719,-447.15680921,0.00020846,2]
[365601627,1749801032729,-500.0,0.00020846,2]
[365601629,1749801032738,-835.27863293,0.00020846,2]
[365601631,1749801032748,-500.0,0.00020846,2]
[365601634,1749801032758,-500.0,0.00020846,2]
[365601635,1749801032772,-500.0,0.00020846,2]
[365601637,1749801032782,-500.0,0.00020846,2]
[365601639,1749801032791,-835.27863293,0.00020846,2]
[365601641,1749801032801,-500.0,0.00020846,2]
[365601643,1749801032811,-500.0,0.00020846,2]
[365601645,1749801032820,-835.27863293,0.00020846,2]
[365601647,1749801032829,-500.0,0.00020846,2]
[365601649,1749801032839,-500.0,0.00020846,2]
[365601651,1749801032848,-500.0,0.00020846,2]
[365601653,1749801032858,-835.27863293,0.00020846,2]
[365601655,1749801032867,-500.0,0.00020846,2]
[365601657,1749801032877,-835.27863293,0.00020846,2]
[365601659,1749801032886,-500.0,0.00020846,2]
[365601661,1749801032895,-492.32211744,0.00020846,2]
[365601663,1749801032906,-500.0,0.00020846,2]
[365601665,1749801032915,-500.0,0.00020846,2]
[365601667,1749801032924,-835.27863293,0.00020846,2]
[365601669,1749801032934,-500.0,0.00020846,2]
[365601671,1749801032943,-835.27863293,0.00020846,2]
[365601673,1749801032952,-835.27863293,0.00020846,2]
[365601675,1749801032962,-500.0,0.00020846,2]
[365601677,1749801032971,-500.0,0.00020846,2]
[365601679,1749801032980,-835.27863293,0.00020846,2]
[365601681,1749801032989,-500.0,0.00020846,2]
[365601683,1749801032999,-835.27863293,0.00020846,2]
[365601685,1749801033008,-500.0,0.00020846,2]
[365601687,1749801033017,-835.27863293,0.00020846,2]
[365601689,1749801033027,-500.0,0.00020846,2]
[365601691,1749801033036,-835.27863293,0.00020846,2]
[365601693,1749801033046,-835.27863293,0.00020846,2]
[365601695,1749801033055,-835.27863293,0.00020846,2]
[365601697,1749801033064,-835.27863293,0.00020846,2]
[365601699,1749801033073,-835.27863293,0.00020846,2]
[365601701,1749801033083,-835.27863293,0.00020846,2]
[365601703,1749801033092,-835.27863293,0.00020846,2]
[365601705,1749801033102,-835.27863293,0.00020846,2]
[365601707,1749801033113,-835.27863293,0.00020846,2]
[365601709,1749801033122,-835.27863293,0.00020846,2]
[365601711,1749801033132,-751.77165267,0.00020846,2]
[365602232,1749801038680,-83.50698026,0.00020846,2]
[365602233,1749801038691,-835.27863293,0.00020846,2]
[365602234,1749801038701,-835.27863293,0.00020846,2]
[365602235,1749801038711,-835.27863293,0.00020846,2]
[365602236,1749801038720,-835.27863293,0.00020846,2]
[365602238,1749801038730,-835.27863293,0.00020846,2]
[365602240,1749801038739,-835.27863293,0.00020846,2]
[365602242,1749801038749,-835.27863293,0.00020846,2]
[365602244,1749801038758,-835.27863293,0.00020846,2]
[365602246,1749801038770,-835.27863293,0.00020846,2]
[365602248,1749801038780,-835.27863293,0.00020846,2]
[365602250,1749801038790,-189.2989348,0.00020846,2]
[365602252,1749801038799,-500.0,0.00020846,2]
[365602254,1749801038809,-500.0,0.00020846,2]
[365602256,1749801038820,-500.0,0.00020846,2]
[365602258,1749801038829,-3293.99987341,0.00020846,2]
[365602260,1749801038839,-500.0,0.00020846,2]
[365602261,1749801038849,-500.0,0.00020846,2]
[365602263,1749801038859,-3293.99987341,0.00020846,2]
[365602265,1749801038868,-200.0,0.00020846,2]
[365602267,1749801038877,-3293.99987341,0.00020846,2]
[365602269,1749801038887,-3293.99987341,0.00020846,2]
[365602271,1749801038897,-3293.99987341,0.00020846,2]
[365602273,1749801038908,-3293.99987341,0.00020846,2]
[365602275,1749801038917,-3293.99987341,0.00020846,2]
[365602277,1749801038927,-3293.99987341,0.00020846,2]
[365602279,1749801038936,-3293.99987341,0.00020846,2]
[365602281,1749801038946,-2689.7592974,0.00020846,2]
[365602283,1749801038959,-604.24057601,0.00020846,2]
[365602285,1749801038968,-2587.30006728,0.00020846,2]
[365602287,1749801038979,-706.69980613,0.00020846,2]
[365602289,1749801038988,-338.44833508,0.00020846,2]
[365602292,1749801038999,-1014.04516778,0.00020846,2]
[365602296,1749801039036,-1941.50637055,0.00020846,2]
[365602298,1749801039045,-3293.99987341,0.00020846,2]
[365602300,1749801039055,-3293.99987341,0.00020846,2]
[365602302,1749801039065,-3293.99987341,0.00020846,2]
[365602304,1749801039074,-3293.99987341,0.00020846,2]
[365602306,1749801039083,-3293.99987341,0.00020846,2]
[365602308,1749801039093,-3293.99987341,0.00020846,2]
[365602310,1749801039103,-3293.99987341,0.00020846,2]
[365602312,1749801039113,-3293.99987341,0.00020846,2]
[365602314,1749801039123,-3293.99987341,0.00020846,2]
[365602316,1749801039133,-3293.99987341,0.00020846,2]
[365602318,1749801039142,-3293.99987341,0.00020846,2]
[365602320,1749801039152,-3293.99987341,0.00020846,2]
[365602322,1749801039162,-3293.99987341,0.00020846,2]
[365602324,1749801039172,-3293.99987341,0.00020846,2]
[365602326,1749801039180,-3271.28263291,0.00020846,2]
[365602328,1749801039190,-3271.28263291,0.00020846,2]
[365602330,1749801039200,-3271.28263291,0.00020846,2]
[365602332,1749801039209,-3271.28263291,0.00020846,2]
[365602334,1749801039218,-3271.28263291,0.00020846,2]
[365602336,1749801039228,-3271.28263291,0.00020846,2]
[365602338,1749801039237,-3271.28263291,0.00020846,2]
[365602340,1749801039246,-3271.28263291,0.00020846,2]
[365602342,1749801039255,-3271.28263291,0.00020846,2]
[365602344,1749801039264,-3271.28263291,0.00020846,2]
[365602346,1749801039274,-3271.28263291,0.00020846,2]
[365602348,1749801039283,-3271.28263291,0.00020846,2]
[365602350,1749801039294,-3271.28263291,0.00020846,2]
[365602352,1749801039303,-3271.28263291,0.00020846,2]
[365602354,1749801039312,-3271.28263291,0.00020846,2]
[365602356,1749801039322,-3271.28263291,0.00020846,2]
[365602358,1749801039331,-3271.28263291,0.00020846,2]
[365602359,1749801039340,-3207.6743595,0.00020846,2]
[365602361,1749801039350,-3207.6743595,0.00020846,2]
[365602364,1749801039359,-3207.6743595,0.00020846,2]
[365602366,1749801039369,-3207.6743595,0.00020846,2]
[365602368,1749801039379,-3207.6743595,0.00020846,2]
[365602370,1749801039389,-3207.6743595,0.00020846,2]
[365602372,1749801039398,-3207.6743595,0.00020846,2]
[365602374,1749801039409,-3207.6743595,0.00020846,2]
[365602376,1749801039418,-3207.6743595,0.00020846,2]
[365602378,1749801039427,-3207.6743595,0.00020846,2]
[365602380,1749801039437,-3207.6743595,0.00020846,2]
[365602382,1749801039446,-3207.67435948,0.00020846,2]
[365602384,1749801039455,-151.9082463,0.00020849,2]
[365602386,1749801039466,-500.0,0.00020855,2]
[365602388,1749801039476,-245.31,0.00020856,2]
[365602390,1749801039485,-151.0,0.00020856,2]
[365602391,1749801039494,-151.0,0.00020857,2]
[365602394,1749801039504,-178.945628,0.00020858,2]
[365602395,1749801039514,-178.945628,0.00020858,2]
[365602398,1749801039523,-151.0,0.00020858,2]
[365602400,1749801039533,-151.0,0.00020859,2]
[365602401,1749801039542,-151.0,0.0002087,2]
[365602403,1749801039551,-151.0,0.0002087,2]
[365602405,1749801039561,-152.477625,0.0002087,2]
[365602407,1749801039570,-257.80565032,0.0002087,2]
[365602409,1749801039580,-169.35438922,0.00020873,2]
[365602411,1749801039590,-500.0,0.00020873,2]
[365602413,1749801039600,-460.48953065,0.00020873,2]
[365602415,1749801039609,-500.61095372,0.00020873,2]
[365602417,1749801039618,-178.945628,0.00020873,2]
[365602419,1749801039628,-178.945628,0.00020873,2]
[365602421,1749801039637,-151.0,0.00020885,2]
[365602423,1749801039646,-2140.17285703,0.000209,4]
[365602425,1749801039656,-2140.17285695,0.00021038,4]
[365602427,1749801039666,-255.19,0.00021085,3]
[365602429,1749801039675,-765.61,0.00021085,3]
[365602431,1749801039685,-178.945628,0.00021095,2]
[365602433,1749801039694,-178.945628,0.00021095,2]
[365602435,1749801039703,-151.0,0.00021095,2]
[365602437,1749801039713,-460.0,0.00021095,4]
[365602439,1749801039722,-460.0,0.00021095,4]
[365602441,1749801039732,-460.0,0.00021095,4]
[365602443,1749801039742,-460.0,0.00021095,4]
[365602445,1749801039751,-575.83212544,0.00021095,4]
[365602447,1749801039760,-438.65118618,0.00021095,4]
[365602449,1749801039773,-444.79650669,0.00021095,4]
[365602451,1749801039783,-460.0,0.00021095,4]
[365602453,1749801039793,-460.0,0.00021095,4]
[365602455,1749801039802,-460.0,0.00021095,4]
[365602457,1749801039814,-296.29529491,0.00021095,4]
[365602459,1749801039823,-456.47644481,0.00021095,4]
[365602461,1749801039833,-446.66971627,0.00021095,4]
[365602463,1749801039844,-446.6739261,0.00021095,4]
[365602465,1749801039853,-453.61493593,0.00021095,4]
[365602467,1749801039863,-760.21,0.00021095,2]
[365602469,1749801039872,-401.07336417,0.00021095,4]
[365602471,1749801039882,-460.0,0.00021095,4]
[365602473,1749801039891,-460.0,0.00021095,4]
[365602475,1749801039901,-482.37104336,0.00021095,4]
[365602477,1749801039911,-460.0,0.00021095,4]
[365602479,1749801039920,-283.03973739,0.00021095,4]
[365602481,1749801039929,-381.40445428,0.00021095,4]
[365602483,1749801039939,-455.82666418,0.00021095,4]
[365602486,1749801039948,-460.0,0.00021095,4]
[365602488,1749801039958,-460.0,0.00021095,4]
[365602490,1749801039967,-432.28154428,0.00021095,4]
[365602492,1749801039976,-187.81,0.00021095,4]
[365602494,1749801039985,-360.81592881,0.00021095,4]
[365602496,1749801039995,-460.0,0.00021095,4]
[365602498,1749801040004,-460.0,0.00021095,4]
[365602500,1749801040014,-460.0,0.00021095,4]
[365602502,1749801040024,-1009.08,0.00021095,4]
[365602504,1749801040033,-1004.14,0.00021095,4]
[365602506,1749801040043,-460.0,0.00021095,4]
[365602508,1749801040053,-460.0,0.00021095,4]
[365602510,1749801040063,-460.0,0.00021095,4]
[365602512,1749801040073,-391.50778704,0.00021095,4]
[365602514,1749801040082,-460.0,0.00021095,4]
[365602516,1749801040092,-460.0,0.00021095,4]
[365602518,1749801040103,-460.0,0.00021095,4]
[365602520,1749801040113,-460.0,0.00021095,4]
[365602522,1749801040123,-460.0,0.00021095,4]
[365602524,1749801040132,-440.0,0.00021095,4]
[365602526,1749801040141,-395.95056222,0.00021095,4]
[365602528,1749801040150,-460.0,0.00021095,4]
[365602530,1749801040160,-460.0,0.00021095,4]
[365602532,1749801040169,-468.92,0.00021095,4]
[365602534,1749801040179,-460.0,0.00021095,4]
[365602536,1749801040188,-457.41154303,0.00021095,4]
[365602538,1749801040198,-585.2,0.00021095,4]
[365602540,1749801040207,-460.0,0.00021095,4]
[365602542,1749801040216,-460.0,0.00021095,4]
[365602544,1749801040226,-460.0,0.00021095,4]
[365602546,1749801040236,-460.0,0.00021095,4]
[365602548,1749801040245,-494.72465794,0.00021095,4]
[365602550,1749801040254,-460.0,0.00021095,4]
[365602552,1749801040263,-460.0,0.00021095,4]
[365602554,1749801040273,-460.0,0.00021095,4]
[365602556,1749801040282,-329.9306565,0.00021095,4]
[365602558,1749801040292,-1701.86,0.00021095,4]
[365602560,1749801040302,-249.77697851,0.00021095,4]
[365602562,1749801040311,-460.0,0.00021095,4]
[365602564,1749801040320,-493.98,0.00021095,4]
[365602566,1749801040330,-460.0,0.00021095,4]
[365602568,1749801040339,-340.04263768,0.00021095,4]
[365602570,1749801040349,-901.36,0.00021095,4]
[365602572,1749801040358,-1364.69,0.00021095,4]
[365602574,1749801040368,-368.0173142,0.00021095,4]
[365602576,1749801040377,-460.0,0.00021095,4]
[365602578,1749801040387,-460.0,0.00021095,4]
[365602580,1749801040396,-1162.02,0.00021095,4]
[365602582,1749801040405,-460.0,0.00021095,4]
[365602584,1749801040415,-460.0,0.00021095,4]
[365602586,1749801040424,-460.0,0.00021095,4]
[365602588,1749801040434,-932.67,0.00021095,4]
[365602590,1749801040443,-1523.92,0.00021095,4]
[365602592,1749801040452,-460.0,0.00021095,4]
[365602594,1749801040461,-460.0,0.00021095,4]
[365602596,1749801040470,-460.0,0.00021095,4]
[365602598,1749801040479,-460.0,0.00021095,4]
[365602600,1749801040488,-460.0,0.00021095,4]
[365602602,1749801040497,-460.0,0.00021095,4]
[365602604,1749801040506,-500.0,0.00021095,4]
[365602606,1749801040515,-500.0,0.00021095,4]
[365602608,1749801040524,-500.0,0.00021095,4]
[365602610,1749801040533,-500.0,0.00021095,4]
[365602612,1749801040542,-500.0,0.00021095,4]
[365602614,1749801040552,-460.0,0.00021095,4]
[365602616,1749801040562,-460.0,0.00021095,4]
[365602618,1749801040571,-500.0,0.00021095,4]
[365602620,1749801040580,-493.45,0.00021095,4]
[365602622,1749801040590,-460.0,0.00021095,4]
[365602624,1749801040599,-1206.86,0.00021095,4]
[365602626,1749801040608,-460.0,0.00021095,4]
[365602628,1749801040618,-962.7,0.00021095,4]
[365602629,1749801040627,-505.39,0.00021095,4]
[365602631,1749801040635,-2140.17285695,0.00021176,4]
[365602633,1749801040644,-178.945628,0.00021176,2]
[365602635,1749801040654,-178.945628,0.00021176,2]
[365602637,1749801040664,-179.06781544,0.00021221,2]
[365602639,1749801040673,-2140.17285695,0.00021314,5]
[365602641,1749801040683,-460.0,0.00021369,4]
[365602643,1749801040692,-473.61321805,0.00021369,4]
[365602645,1749801040702,-460.0,0.00021369,4]
[365602655,1749801040795,-460.0,0.00021369,4]
[365602658,1749801040806,-227.16,0.00021369,4]
[365602660,1749801040817,-535.0,0.00021369,4]
[365602662,1749801040826,-460.0,0.00021369,4]
[365602664,1749801040836,-760.21,0.00021369,2]
[365602666,1749801040845,-583.38012545,0.00021369,4]
[365602668,1749801040854,-460.0,0.00021369,4]
[365602670,1749801040864,-460.0,0.00021369,4]
[365602672,1749801040873,-460.0,0.00021369,4]
[365602674,1749801040883,-460.0,0.00021369,4]
[365602676,1749801040892,-460.0,0.00021369,4]
[365602678,1749801040901,-460.0,0.00021369,4]
[365602680,1749801040912,-1009.08,0.00021369,4]
[365602681,1749801040921,-1004.14,0.00021369,4]
[365602683,1749801040931,-460.0,0.00021369,4]
[365602684,1749801040941,-460.0,0.00021369,4]
[365602685,1749801040950,-460.0,0.00021369,4]
[365602686,1749801040960,-460.0,0.00021369,4]
[365602687,1749801040970,-460.0,0.00021369,4]
[365602688,1749801040979,-460.0,0.00021369,4]
[365602689,1749801040989,-476.23999682,0.00021369,4]
[365602690,1749801041000,-460.0,0.00021369,4]
[365602691,1749801041009,-460.0,0.00021369,4]
[365602692,1749801041019,-460.0,0.00021369,4]
[365602693,1749801041028,-468.92,0.00021369,4]
[365602694,1749801041038,-460.0,0.00021369,4]
[365602695,1749801041047,-585.2,0.00021369,4]
[365602696,1749801041057,-460.0,0.00021369,4]
[365602697,1749801041067,-460.0,0.00021369,4]
[365602698,1749801041076,-460.0,0.00021369,4]
[365602699,1749801041086,-460.0,0.00021369,4]
[365602700,1749801041095,-460.0,0.00021369,4]
[365602701,1749801041105,-460.0,0.00021369,4]
[365602702,1749801041115,-460.0,0.00021369,4]
[365602703,1749801041124,-1701.86,0.00021369,4]
[365602704,1749801041134,-493.98,0.00021369,4]
[365602705,1749801041143,-460.0,0.00021369,4]
[365602706,1749801041152,-901.36,0.00021369,4]
[365602707,1749801041163,-1364.69,0.00021369,4]
[365602708,1749801041173,-460.0,0.00021369,4]
[365602709,1749801041182,-460.0,0.00021369,4]
[365602710,1749801041192,-1162.02,0.00021369,4]
[365602711,1749801041201,-460.0,0.00021369,4]
[365602712,1749801041211,-460.0,0.00021369,4]